bitfinex-derivatives/quotes_BTCF0:USTF0_20240825
["timestamp","ask_amount","ask_price","bid_price","bid_amount"]
[1724552545719,0.4813528,64232.0,64231.0,0.21659045]
[1724552545720,0.0372263,64232.0,64231.0,0.21659045]
[1724552545930,0.08981842,64232.0,64231.0,0.17003959]
[1724552546126,0.012,64232.0,64231.0,0.23204304]
[1724552546324,0.012,64232.0,64231.0,0.17003959]
[1724552546525,0.012,64232.0,64231.0,0.25649226]
[1724552547221,0.012,64232.0,64231.0,0.26220189]
[1724552547628,0.00557343,64237.0,64231.0,0.26220189]
[1724552547629,0.07781842,64236.0,64234.0,0.077802]
[1724552547938,0.07781842,64236.0,64235.0,0.10212757]
[1724552548523,0.07781842,64237.0,64235.0,0.10212757]
[1724552548833,0.07781842,64237.0,64236.0,0.23832557]
[1724552550426,0.06218511,64237.0,64236.0,0.23832557]
[1724552551023,0.06218511,64237.0,64236.0,0.14832557]
[1724552551226,0.44417815,64239.0,64236.0,0.19489036]
[1724552551428,0.44417815,64239.0,64236.0,0.17056479]
[1724552551626,0.002,64237.0,64236.0,0.125]
[1724552552131,0.014,64237.0,64236.0,0.0798]
[1724552553630,0.400024,64237.0,64236.0,0.1698]
[1724552556430,0.039224,64237.0,64236.0,0.1698]
[1724552556634,0.400024,64237.0,64236.0,0.1698]
[1724552557723,0.400024,64237.0,64236.0,0.0798]
[1724552558023,0.567824,64237.0,64236.0,0.002]
[1724552558422,0.47782429,64237.0,64236.0,0.002]
[1724552559021,0.40002429,64237.0,64236.0,0.002]
[1724552559219,0.40002429,64237.0,64236.0,0.079801]
[1724552561626,0.52426238,64237.0,64234.0,0.09]
[1724552561825,0.52426238,64237.0,64235.0,0.077802]
[1724552561826,0.14946238,64236.0,64235.0,0.077802]
[1724552563728,0.16146238,64236.0,64235.0,0.078802]
[1724552564630,0.09271831,64236.0,64235.0,0.079802]
[1724552565631,0.015,64236.0,64235.0,0.079802]
[1724552567628,0.09273383,64236.0,64235.0,0.079802]
[1724552568537,0.015,64236.0,64235.0,0.079802]
[1724552570633,0.04022386,64236.0,64235.0,0.079802]
[1724552572465,0.09275805,64236.0,64235.0,0.10412814]
[1724552572937,0.015,64236.0,64235.0,0.15069293]
[1724552573537,0.09275805,64236.0,64235.0,0.10412814]
[1724552573739,0.015,64236.0,64235.0,0.10412814]
[1724552574334,0.015,64236.0,64235.0,0.10312814]
[1724552574335,0.012,64236.0,64235.0,0.10312814]
[1724552574639,0.09275805,64236.0,64235.0,0.10412814]
[1724552574906,0.09275805,64236.0,64235.0,0.079802]
[1724552575140,0.09275805,64236.0,64235.0,0.15069173]
[1724552575141,0.08875805,64236.0,64235.0,0.15069173]
[1724552577445,0.011,64236.0,64235.0,0.10412694]
[1724552578037,0.011,64236.0,64235.0,0.079802]
[1724552584247,0.011,64236.0,64235.0,0.1418575]
[1724552584551,0.011,64236.0,64235.0,0.079802]
[1724552585048,0.011,64236.0,64235.0,0.10412505]
[1724552586248,0.011,64236.0,64235.0,0.16617383]
[1724552586471,0.011,64236.0,64235.0,0.16617385]
[1724552586843,0.011,64236.0,64235.0,0.10412507]
[1724552587042,0.05764018,64236.0,64235.0,0.10412507]
[1724552588748,0.011,64236.0,64235.0,0.10412507]
[1724552589554,0.011,64236.0,64235.0,0.079802]
[1724552589862,0.011,64236.0,64235.0,0.30022785]
[1724552591047,0.011,64236.0,64235.0,0.22266758]
[1724552591256,0.011,64236.0,64235.0,0.22266733]
[1724552592851,0.05764018,64236.0,64235.0,0.25618853]
[1724552593046,0.05764018,64236.0,64235.0,0.23186544]
[1724552593954,0.05764018,64236.0,64235.0,0.14186544]
[1724552594156,0.05464018,64236.0,64235.0,0.168802]
[1724552594951,0.05464018,64236.0,64235.0,0.167802]
[1724552594952,0.05164018,64236.0,64235.0,0.167802]
[1724552595151,0.05464018,64236.0,64235.0,0.167802]
[1724552596462,0.008,64236.0,64235.0,0.167802]
[1724552598457,0.008,64236.0,64235.0,0.528602]
[1724552598854,0.15591253,64236.0,64235.0,0.3608]
[1724552599059,0.15591253,64236.0,64235.0,0.4508]
[1724552599472,0.15591253,64236.0,64235.0,0.528602]
[1724552600155,0.15591253,64236.0,64235.0,0.55292468]
[1724552600553,0.10136079,64236.0,64235.0,1.43942282]
[1724552600752,0.10136079,64236.0,64235.0,1.51722482]
[1724552601862,0.008,64236.0,64235.0,1.59480412]
[1724552602077,0.008,64236.0,64235.0,1.59480331]
[1724552602562,0.008,64236.0,64235.0,1.71333838]
[1724552603058,0.008,64236.0,64235.0,1.61630094]
[1724552604264,0.008,64236.0,64235.0,1.69387796]
[1724552604766,0.008,64236.0,64235.0,1.57534289]
[1724552605469,0.008,64236.0,64235.0,1.57534305]
[1724552606862,0.007,64236.0,64235.0,1.57534305]
[1724552607564,0.04664811,64238.0,64237.0,0.0778]
[1724552607758,0.04664811,64238.0,64237.0,0.10212203]
[1724552607958,0.04664811,64238.0,64237.0,0.56912203]
[1724552608662,0.04964811,64238.0,64237.0,0.56912203]
[1724552608861,0.003,64238.0,64237.0,1.04845789]
[1724552609065,0.003,64238.0,64237.0,0.68765789]
[1724552609260,0.003,64238.0,64237.0,1.04845789]
[1724552609657,0.003,64238.0,64237.0,0.58145789]
[1724552609863,0.008,64238.0,64237.0,0.58145789]
[1724552610254,0.008,64238.0,64237.0,0.22065789]
[1724552610471,0.008,64238.0,64237.0,0.58145789]
[1724552610762,0.008,64238.0,64237.0,0.22065789]
[1724552610964,0.008,64238.0,64237.0,0.58145789]
[1724552611970,0.05464811,64238.0,64237.0,0.46292203]
[1724552612762,0.05464811,64238.0,64237.0,0.10776134]
[1724552613061,0.05464811,64238.0,64237.0,0.46856134]
[1724552613263,0.05464811,64238.0,64237.0,0.10776134]
[1724552613264,0.008,64238.0,64237.0,0.10776134]
[1724552613463,0.008,64238.0,64237.0,0.46856134]
[1724552614772,0.008,64238.0,64237.0,0.44423931]
[1724552615007,0.008,64238.0,64237.0,0.08343931]
[1724552615162,0.008,64238.0,64237.0,0.44423931]
[1724552615362,0.008,64238.0,64237.0,0.08343931]
[1724552615666,0.008,64238.0,64237.0,0.44423931]
[1724552616670,0.008,64238.0,64237.0,0.53423931]
[1724552616966,0.008,64238.0,64237.0,0.17343931]
[1724552617173,0.008,64238.0,64237.0,0.53423931]
[1724552619263,0.07019748,64238.0,64237.0,0.53423931]
[1724552620873,0.008,64238.0,64237.0,0.53423931]
[1724552621371,0.07019748,64238.0,64237.0,0.53423931]
[1724552621738,0.07019748,64238.0,64237.0,0.17343931]
[1724552621871,0.07019748,64238.0,64237.0,0.44423931]
[1724552622067,0.07019748,64238.0,64237.0,0.53423931]
[1724552622374,0.085799,64238.0,64236.0,0.06205257]
[1724552622570,0.16354585,64238.0,64237.0,0.04654435]
[1724552622776,0.0477,64237.0,64236.0,0.09]
[1724552623270,0.0477,64237.0,64236.0,0.11432438]
[1724552624074,0.0477,64237.0,64236.0,0.13378346]
[1724552624259,0.0507,64237.0,64236.0,0.13378346]
[1724552624666,0.0507,64237.0,64236.0,0.21158446]
[1724552624966,0.0507,64237.0,64236.0,0.167801]
[1724552625207,0.0507,64237.0,64236.0,0.19212485]
[1724552625669,0.0547,64237.0,64236.0,0.21158393]
[1724552628189,0.0547,64237.0,64236.0,0.21158396]
[1724552628972,0.0547,64237.0,64236.0,0.167801]
[1724552629278,0.0547,64237.0,64236.0,0.21158398]
[1724552629477,0.0547,64237.0,64236.0,0.19212488]
[1724552629871,0.10135702,64237.0,64236.0,0.19212488]
[1724552630568,0.10135702,64237.0,64236.0,0.167801]
[1724552630771,0.10135702,64237.0,64236.0,0.19212488]
[1724552631894,0.10135702,64237.0,64236.0,0.167801]
[1724552632101,0.10135702,64237.0,64236.0,0.19212488]
[1724552632274,0.10135702,64237.0,64236.0,0.167801]
[1724552633083,0.05365702,64237.0,64236.0,0.167801]
[1724552634178,0.05365702,64237.0,64236.0,0.19212481]
[1724552635377,0.007,64237.0,64236.0,0.28913972]
[1724552635684,0.007,64237.0,64236.0,0.40768067]
[1724552635983,0.007,64237.0,64236.0,0.21158348]
[1724552638933,0.007,64237.0,64236.0,0.167801]
[1724552639068,0.007,64237.0,64236.0,0.21158231]
[1724552639505,0.007,64237.0,64236.0,0.23590522]
[1724552639682,0.007,64237.0,64236.0,0.21158227]
[1724552639975,0.007,64237.0,64236.0,0.25411669]
[1724552640977,0.007,64237.0,64236.0,0.31066418]
[1724552641483,0.007,64237.0,64236.0,0.33012252]
[1724552642867,0.12373524,64237.0,64236.0,0.21158227]
[1724552643071,0.15378257,64237.0,64236.0,0.21158227]
[1724552643274,0.15378257,64237.0,64236.0,0.19212393]
[1724552645979,0.007,64237.0,64236.0,0.19212393]
[1724552646984,0.007,64237.0,64236.0,0.21158227]
[1724552647675,0.007,64237.0,64236.0,0.19212393]
[1724552648396,0.007,64237.0,64236.0,0.19212365]
[1724552648775,0.007,64237.0,64236.0,0.167801]
[1724552649083,0.007,64237.0,64236.0,0.19212365]
[1724552652580,0.007,64237.0,64236.0,0.167801]
[1724552653784,0.007,64237.0,64236.0,0.077801]
[1724552653993,0.007,64237.0,64236.0,0.167801]
[1724552658095,0.05367133,64237.0,64236.0,0.167801]
[1724552658996,0.05367133,64237.0,64236.0,0.26476156]
[1724552659187,0.05367133,64237.0,64236.0,0.38329889]
[1724552659188,0.05367204,64237.0,64236.0,0.38329889]
[1724552659567,0.05367204,64237.0,64236.0,0.31066023]
[1724552659568,0.007,64237.0,64236.0,0.31066023]
[1724552659587,0.04667204,64238.0,64236.0,0.33011775]
[1724552659785,0.06221589,64241.0,64240.0,0.077796]
[1724552659988,0.06221589,64242.0,64241.0,0.077795]
[1724552660187,0.00023359,64244.0,64243.0,0.077793]
[1724552660386,0.00023359,64244.0,64243.0,0.438593]
[1724552660590,0.00023359,64244.0,64243.0,0.46291477]
[1724552661287,0.00023359,64244.0,64243.0,0.5249127]
[1724552661485,0.06245082,64244.0,64243.0,0.5249127]
[1724552662292,0.06245082,64244.0,64243.0,0.5249116]
[1724552662792,0.07345082,64244.0,64243.0,0.5259116]
[1724552663384,0.06245082,64244.0,64243.0,0.5259116]
[1724552663591,0.06945082,64244.0,64243.0,0.5269116]
[1724552663989,0.06249623,64244.0,64243.0,0.46391367]
[1724552664181,0.06249623,64244.0,64243.0,0.46491367]
[1724552665791,0.06249623,64244.0,64243.0,0.10411367]
[1724552666005,0.06249623,64244.0,64243.0,0.46491367]
[1724552666696,0.03245169,64244.0,64243.0,0.46491367]
[1724552667700,0.03245169,64244.0,64243.0,0.079793]
[1724552667904,0.03245169,64244.0,64243.0,0.440593]
[1724552668100,0.00723359,64244.0,64243.0,0.440593]
[1724552670710,0.00723359,64244.0,64243.0,0.079793]
[1724552671004,0.00723359,64244.0,64243.0,0.440593]
[1724552671201,0.06249599,64244.0,64243.0,0.440593]
[1724552672220,0.03245158,64244.0,64243.0,0.440593]
[1724552673007,0.10058443,64244.0,64243.0,0.440593]
[1724552673507,0.10058443,64244.0,64243.0,0.079793]
[1724552673704,0.10058443,64244.0,64243.0,0.440593]
[1724552675202,0.10058443,64244.0,64243.0,0.518386]
[1724552675405,0.10058443,64244.0,64243.0,0.47272044]
[1724552675610,0.10058443,64244.0,64243.0,0.49217584]
[1724552675611,0.271606,64244.0,64243.0,0.49217584]
[1724552675802,0.03808472,64255.0,64243.0,0.81438284]
[1724552676008,0.06218112,64253.0,64252.0,0.13974186]
[1724552676204,0.06218112,64253.0,64252.0,0.21276096]
[1724552676411,0.06218112,64256.0,64255.0,0.077778]
[1724552676604,0.0472,64262.0,64255.0,0.077778]
[1724552676605,0.06218112,64257.0,64255.0,0.02431704]
[1724552676807,0.10961471,64262.0,64261.0,0.077771]
[1724552677007,0.04743359,64262.0,64261.0,0.2141873]
[1724552677311,0.04743359,64262.0,64261.0,0.19208804]
[1724552678012,0.00023359,64262.0,64261.0,0.19208804]
[1724552678403,0.00023359,64262.0,64261.0,0.2384697]
[1724552678605,0.00123359,64262.0,64261.0,0.19308804]
[1724552679033,0.02644455,64262.0,64261.0,0.19308804]
[1724552679211,0.05648058,64262.0,64261.0,0.19308804]
[1724552679421,0.06148058,64262.0,64261.0,0.19408478]
[1724552679811,0.1400314,64262.0,64261.0,0.19408478]
[1724552680007,0.17006743,64262.0,64261.0,0.19408478]
[1724552680607,0.06148058,64262.0,64261.0,0.19408478]
[1724552681211,0.06148058,64262.0,64261.0,0.169771]
[1724552682714,0.06048058,64262.0,64261.0,0.168771]
[1724552683110,0.00523359,64262.0,64261.0,0.168771]
[1724552683315,0.00523359,64262.0,64261.0,0.17469826]
[1724552684409,0.00423359,64262.0,64261.0,0.17369826]
[1724552684613,0.00523359,64262.0,64261.0,0.17369826]
[1724552686021,0.06722658,64262.0,64261.0,0.17369826]
[1724552688121,0.06322658,64262.0,64261.0,0.17369826]
[1724552688414,0.06722658,64262.0,64261.0,0.17369826]
[1724552689912,0.06722658,64262.0,64261.0,0.08369826]
[1724552690121,0.06722658,64262.0,64261.0,0.17369826]
[1724552692029,0.00523359,64262.0,64261.0,0.17369826]
[1724552698931,0.124871,64262.0,64261.0,0.09592726]
[1724552699172,0.21067361,64262.0,64261.0,0.09]
[1724552699333,0.3608,64271.0,64260.0,0.06260117]
[1724552699334,0.3608,64264.0,64260.0,0.06260117]
[1724552699630,0.3608,64264.0,64263.0,0.167768]
[1724552700521,0.3638,64264.0,64263.0,0.167768]
[1724552701360,0.3658,64264.0,64263.0,0.167768]
[1724552701533,0.3658,64264.0,64263.0,0.168768]
[1724552702029,0.3658,64264.0,64263.0,0.078768]
[1724552702221,0.39101114,64264.0,64263.0,0.168768]
[1724552703430,0.48396038,64264.0,64263.0,0.168768]
[1724552703933,0.39101114,64264.0,64263.0,0.168768]
[1724552705225,0.3658,64264.0,64263.0,0.168768]
[1724552705428,0.005,64264.0,64263.0,0.168768]
[1724552706423,0.06711434,64264.0,64263.0,0.168768]
[1724552708427,0.03021058,64264.0,64263.0,0.168768]
[1724552710942,0.03021057,64264.0,64263.0,0.168768]
[1724552713030,0.005,64264.0,64263.0,0.168768]
[1724552713233,0.15887832,64264.0,64263.0,0.168768]
[1724552713433,0.20660534,64264.0,64263.0,0.12993094]
[1724552713640,0.45912297,64264.0,64263.0,0.15424436]
[1724552713882,0.45912297,64264.0,64263.0,0.12993094]
[1724552714340,0.45912297,64264.0,64263.0,0.15424439]
[1724552715131,0.45912297,64264.0,64263.0,0.17369519]
[1724552715639,0.45912297,64264.0,64263.0,0.15424439]
[1724552716343,0.3658,64264.0,64263.0,0.15424439]
[1724552717060,0.3658,64264.0,64263.0,0.12993094]
[1724552717647,0.3658,64264.0,64263.0,0.17855794]
[1724552717848,0.3658,64264.0,64263.0,0.15424444]
[1724552718537,0.3658,64264.0,64263.0,0.001]
[1724552718738,0.3658,64264.0,64263.0,0.0253135]
[1724552718739,0.5053,64264.0,64263.0,0.0253135]
[1724552719543,0.5053,64264.0,64263.0,0.08724818]
[1724552720138,0.5053,64264.0,64263.0,0.06293468]
[1724552720637,1.449907,64264.0,64263.0,0.06293468]
[1724552720938,1.449907,64264.0,64260.0,0.00583479]
[1724552720939,0.077771,64261.0,64260.0,0.04647241]
[1724552721145,0.1555283,64261.0,64260.0,0.04647241]
[1724552721338,0.15552926,64261.0,64260.0,0.13647241]
[1724552721541,0.077771,64261.0,64260.0,0.13647241]
[1724552722042,0.07775826,64263.0,64260.0,0.21424441]
[1724552722239,0.06317296,64261.0,64260.0,0.167772]
[1724552722439,0.001,64261.0,64260.0,0.167772]
[1724552723039,0.86978663,64264.0,64260.0,0.09]
[1724552723238,0.86866662,64264.0,64263.0,0.09]
[1724552723438,0.8611,64264.0,64263.0,0.09]
[1724552724440,0.8631,64264.0,64263.0,0.091]
[1724552724950,0.5023,64264.0,64263.0,0.091]
[1724552725937,0.1425,64264.0,64263.0,0.091]
[1724552726159,0.5033,64264.0,64263.0,0.091]
[1724552727256,0.5033,64264.0,64263.0,0.168768]
[1724552728441,0.5033,64264.0,64263.0,0.19308347]
[1724552729242,0.5033,64264.0,64263.0,0.168768]
[1724552730447,0.55855097,64264.0,64263.0,0.168768]
[1724552730842,0.19775097,64264.0,64263.0,0.168768]
[1724552731048,0.55855097,64264.0,64263.0,0.168768]
[1724552732347,0.66740064,64264.0,64263.0,0.168768]
[1724552732630,0.55855097,64264.0,64263.0,0.168768]
[1724552732947,0.19775097,64264.0,64263.0,0.168768]
[1724552733255,0.55855097,64264.0,64263.0,0.168768]
[1724552733456,0.66740064,64264.0,64263.0,0.168768]
[1724552736048,0.61890064,64264.0,64263.0,0.168768]
[1724552736247,0.61890064,64264.0,64263.0,0.078768]
[1724552736454,0.54813301,64264.0,64263.0,0.078768]
[1724552737447,0.62590001,64264.0,64263.0,0.078768]
[1724552737957,0.26510236,64264.0,64263.0,0.078768]
[1724552738347,0.62590236,64264.0,64263.0,0.078768]
[1724552740447,1.49274236,64264.0,64256.0,0.00735]
[1724552740653,0.4508,64257.0,64253.0,0.0478]
[1724552740953,0.05525324,64256.0,64253.0,0.0478]
[1724552741153,0.1640438,64256.0,64253.0,0.0478]
[1724552741355,0.1640438,64255.0,64253.0,0.0478]
[1724552741559,0.05525324,64254.0,64253.0,0.0478]
[1724552741788,0.05525324,64254.0,64253.0,0.0528]
[1724552741971,0.05525324,64254.0,64253.0,0.005]
[1724552742370,0.05525324,64254.0,64253.0,0.095]
[1724552743762,0.05525324,64254.0,64253.0,0.099]
[1724552744155,0.05525324,64254.0,64253.0,0.095]
[1724552744349,0.05525324,64254.0,64253.0,0.099]
[1724552745058,0.05525324,64254.0,64253.0,0.176781]
[1724552745059,0.41605324,64254.0,64253.0,0.176781]
[1724552746761,0.38601381,64254.0,64253.0,0.20110003]
[1724552747150,0.38601381,64254.0,64253.0,0.176781]
[1724552747354,0.46379442,64254.0,64253.0,0.15349989]
[1724552747551,0.46379442,64254.0,64253.0,0.176781]
[1724552747552,0.50188038,64254.0,64253.0,0.176781]
[1724552749565,0.14108038,64254.0,64253.0,0.176781]
[1724552749761,0.50188038,64254.0,64253.0,0.176781]
[1724552750469,0.38601381,64254.0,64253.0,0.176781]
[1724552751365,0.02521381,64254.0,64253.0,0.176781]
[1724552751557,0.38601381,64254.0,64253.0,0.176781]
[1724552752467,0.02521381,64254.0,64253.0,0.176781]
[1724552752665,0.38601381,64254.0,64253.0,0.176781]
[1724552753571,0.42292251,64254.0,64253.0,0.176781]
[1724552756764,0.3608,64254.0,64253.0,0.176781]
[1724552759784,0.077779,64255.0,64253.0,0.176781]
[1724552759970,0.077779,64255.0,64254.0,0.04634792]
[1724552760164,0.077779,64255.0,64254.0,0.09484792]
[1724552760476,0.50070151,64255.0,64254.0,0.0485]
[1724552761575,0.438579,64255.0,64254.0,0.126279]
[1724552762069,0.438579,64255.0,64254.0,0.133279]
[1724552770180,0.077779,64255.0,64254.0,0.133279]
[1724552770374,0.15543214,64255.0,64254.0,0.17962692]
[1724552770580,0.51623214,64255.0,64254.0,0.17962692]
[1724552772581,0.438579,64255.0,64254.0,0.17962692]
[1724552773380,0.49383715,64255.0,64254.0,0.133279]
[1724552774681,0.53192266,64255.0,64254.0,0.133279]
[1724552776389,0.51638532,64255.0,64254.0,0.133279]
[1724552779481,0.46379505,64255.0,64254.0,0.133279]
[1724552779888,0.46379503,64255.0,64254.0,0.133279]
[1724552780079,0.46379503,64255.0,64254.0,0.15759768]
[1724552782294,0.46379503,64255.0,64254.0,0.133279]
[1724552782483,0.438579,64255.0,64254.0,0.15759768]
[1724552782687,0.3608,64255.0,64254.0,0.19522324]
[1724552782984,0.3608,64255.0,64254.0,0.26934166]
[1724552784093,0.07780956,64256.0,64255.0,0.077778]
[1724552784289,0.07780956,64256.0,64255.0,0.10209639]
[1724552784485,0.07780956,64256.0,64255.0,0.06543267]
[1724552784486,0.14107949,64256.0,64255.0,0.06543267]
[1724552784885,0.72272001,64258.0,64257.0,0.077776]
[1724552785084,0.86267949,64258.0,64257.0,0.167776]
[1724552786585,0.14107949,64258.0,64257.0,0.167776]
[1724552786780,0.86267949,64258.0,64257.0,0.167776]
[1724552786993,0.14107949,64258.0,64257.0,0.167776]
[1724552787186,0.86267949,64258.0,64257.0,0.167776]
[1724552787389,0.86267949,64258.0,64257.0,0.078776]
[1724552788489,0.7216,64258.0,64257.0,0.078776]
[1724552789491,0.799375,64258.0,64257.0,0.078776]
[1724552791393,0.82459076,64258.0,64257.0,0.12522705]
[1724552791589,0.82459076,64258.0,64257.0,0.04745105]
[1724552793095,0.10299076,64258.0,64257.0,0.04745105]
[1724552793293,0.82459076,64258.0,64257.0,0.001]
[1724552794394,0.89271776,64258.0,64257.0,0.001]
[1724552794592,1.01720962,64258.0,64257.0,0.001]
[1724552795788,0.29560962,64258.0,64257.0,0.001]
[1724552795987,1.01720962,64258.0,64257.0,0.001]
[1724552797490,0.82459083,64258.0,64257.0,0.001]
[1724552798086,0.10299083,64258.0,64257.0,0.001]
[1724552798298,0.82459083,64258.0,64257.0,0.001]
[1724552799395,0.82459082,64258.0,64257.0,0.001]
[1724552799593,0.10299082,64258.0,64257.0,0.001]
[1724552799793,0.82459082,64258.0,64257.0,0.001]
[1724552800393,0.91795921,64258.0,64257.0,0.001]
[1724552802790,0.19635921,64258.0,64257.0,0.001]
[1724552802992,0.91795921,64258.0,64257.0,0.001]
[1724552804497,0.19635921,64258.0,64257.0,0.001]
[1724552804892,0.91795921,64258.0,64257.0,0.001]
[1724552806995,0.19635921,64258.0,64257.0,0.001]
[1724552807196,0.91795921,64258.0,64257.0,0.001]
[1724552807501,0.82459082,64258.0,64257.0,0.001]
[1724552808604,0.10299082,64258.0,64257.0,0.001]
[1724552808797,0.82459082,64258.0,64257.0,0.001]
[1724552810290,0.10299082,64258.0,64257.0,0.001]
[1724552810493,0.8927177,64258.0,64257.0,0.001]
[1724552811149,0.1711177,64258.0,64257.0,0.001]
[1724552811287,0.8546326,64258.0,64257.0,0.001]
[1724552811604,0.1711177,64258.0,64257.0,0.001]
[1724552811802,0.8927177,64258.0,64257.0,0.001]
[1724552812500,0.5319177,64258.0,64257.0,0.001]
[1724552812700,0.8927177,64258.0,64257.0,0.001]
[1724552813401,0.91797073,64258.0,64257.0,0.001]
[1724552814127,0.91797071,64258.0,64257.0,0.001]
[1724552814474,0.7216,64258.0,64257.0,0.168776]
[1724552814561,0.7216,64258.0,64257.0,0.18823074]
[1724552815403,0.7216,64258.0,64257.0,0.25751545]
[1724552816300,0.7216,64258.0,64257.0,0.18823074]
[1724552817371,0.7216,64258.0,64257.0,0.18822932]
[1724552818799,0.7216,64258.0,64257.0,0.09822932]
[1724552819205,0.7216,64258.0,64257.0,0.15587746]
[1724552819409,0.76825385,64258.0,64257.0,0.078776]
[1724552819703,0.76825385,64258.0,64257.0,0.09822979]
[1724552819704,0.7216,64258.0,64257.0,0.09822979]
[1724552820004,0.22998519,64259.0,64257.0,0.09822979]
[1724552820209,0.95158519,64259.0,64258.0,0.01945379]
[1724552820525,0.889373,64259.0,64258.0,0.01945379]
[1724552821495,0.889373,64259.0,64257.0,0.078776]
[1724552821496,0.96718901,64259.0,64257.0,0.078776]
[1724552821901,0.07781601,64258.0,64257.0,0.078776]
[1724552822107,0.96830902,64259.0,64257.0,0.078776]
[1724552822301,0.96718901,64259.0,64257.0,0.078776]
[1724552822707,0.96818901,64259.0,64257.0,0.078776]
[1724552823308,0.96718901,64259.0,64257.0,0.078776]
[1724552823506,0.16419839,64258.0,64257.0,0.078776]
[1724552823905,0.52499839,64258.0,64257.0,0.078776]
[1724552824803,0.41605513,64258.0,64257.0,0.078776]
[1724552825498,0.50187355,64258.0,64257.0,0.078776]
[1724552826610,0.45413856,64258.0,64257.0,0.078776]
[1724552827009,0.45413805,64258.0,64257.0,0.168776]
[1724552827205,0.62518898,64258.0,64257.0,0.168776]
[1724552828411,0.53185093,64258.0,64257.0,0.168776]
[1724552828804,0.3608,64258.0,64257.0,0.168776]
[1724552830148,0.3608,64258.0,64257.0,0.091]
[1724552830816,0.3608,64258.0,64257.0,0.168776]
[1724552832018,0.077772,64260.0,64258.0,0.077773]
[1724552832220,0.077772,64260.0,64259.0,0.04647381]
[1724552832719,0.15552093,64260.0,64258.0,0.04647381]
[1724552833016,0.077772,64260.0,64259.0,0.04647381]
[1724552833816,0.079772,64260.0,64259.0,0.12424681]
[1724552834620,0.13502647,64260.0,64259.0,0.077773]
[1724552835121,0.49582647,64260.0,64259.0,0.077773]
[1724552835316,0.49682647,64260.0,64259.0,0.077773]
[1724552836321,0.13602647,64260.0,64259.0,0.077773]
[1724552836788,0.49682648,64260.0,64259.0,0.077773]
[1724552837513,0.441572,64260.0,64259.0,0.077773]
[1724552839629,0.080772,64260.0,64259.0,0.077773]
[1724552839834,0.441572,64260.0,64259.0,0.077773]
[1724552840735,0.080772,64260.0,64259.0,0.077773]
[1724552841028,0.441572,64260.0,64259.0,0.077773]
[1724552841323,0.3638,64260.0,64259.0,0.077773]
[1724552842433,0.42600722,64260.0,64259.0,0.077773]
[1724552846932,0.3638,64260.0,64259.0,0.077773]
[1724552849032,0.441572,64260.0,64259.0,0.077773]
[1724552851028,0.080772,64260.0,64259.0,0.077773]
[1724552851348,0.441572,64260.0,64259.0,0.077773]
[1724552853229,0.080772,64260.0,64259.0,0.077773]
[1724552853634,0.441572,64260.0,64259.0,0.077773]
[1724552853836,0.080772,64260.0,64259.0,0.077773]
[1724552854238,0.441572,64260.0,64259.0,0.077773]
[1724552856048,0.080772,64260.0,64259.0,0.077773]
[1724552856234,0.441572,64260.0,64259.0,0.077773]
[1724552857030,0.080772,64260.0,64259.0,0.077773]
[1724552857129,0.441572,64260.0,64259.0,0.077773]
[1724552858241,0.080772,64260.0,64259.0,0.077773]
[1724552858435,0.441572,64260.0,64259.0,0.077773]
[1724552860445,0.080772,64260.0,64259.0,0.077773]
[1724552860645,0.441572,64260.0,64259.0,0.077773]
[1724552861247,0.077775,64258.0,64257.0,0.07710146]
[1724552861465,0.077777,64256.0,64255.0,0.15487946]
[1724552861749,0.077777,64256.0,64255.0,0.077778]
[1724552862639,0.10299335,64256.0,64255.0,0.077778]
[1724552862839,0.10299335,64256.0,64255.0,0.12429524]
[1724552863047,0.10299335,64256.0,64255.0,0.12629524]
[1724552863245,0.46379335,64256.0,64255.0,0.12629524]
[1724552863435,0.438577,64256.0,64255.0,0.079778]
[1724552863942,0.438577,64256.0,64255.0,0.082778]
[1724552864743,0.46379322,64256.0,64255.0,0.082778]
[1724552865540,0.438577,64256.0,64255.0,0.14480099]
[1724552865749,0.438577,64256.0,64255.0,0.06702299]
[1724552866337,0.44604244,64256.0,64255.0,0.06702299]
[1724552871351,0.44604244,64256.0,64255.0,0.005]
[1724552874243,0.48521841,64256.0,64255.0,0.14480099]
[1724552874451,0.438577,64256.0,64255.0,0.082778]
[1724552877555,0.077777,64256.0,64255.0,0.082778]
[1724552877754,0.438577,64256.0,64255.0,0.082778]
[1724552878358,0.3608,64256.0,64255.0,0.082778]
[1724552879157,0.05397304,64257.0,64256.0,0.077777]
[1724552879359,0.05397304,64257.0,64256.0,0.167777]
[1724552879657,0.05397304,64257.0,64256.0,0.213177]
[1724552879843,0.00733163,64257.0,64256.0,0.213177]
[1724552880153,0.04664141,64258.0,64256.0,0.213177]
[1724552880351,0.04664141,64258.0,64257.0,0.06192725]
[1724552881151,0.40744141,64258.0,64257.0,0.06192725]
[1724552882052,0.40744141,64258.0,64256.0,0.125177]
[1724552882259,0.3608,64258.0,64257.0,0.077776]
[1724552882850,0.3608,64258.0,64257.0,0.078776]
[1724552888957,0.438575,64258.0,64257.0,0.078776]
[1724552890663,0.438575,64258.0,64257.0,0.168776]
[1724552894659,0.438575,64258.0,64257.0,0.078776]
[1724552898162,0.438575,64258.0,64257.0,0.168776]
[1724552900272,0.3608,64258.0,64257.0,0.168776]
[1724552901568,0.06970852,64260.0,64259.0,0.077773]
[1724552902360,0.00750013,64260.0,64259.0,0.077773]
[1724552902561,0.077771,64261.0,64259.0,0.077773]
[1724552902787,0.02721476,64260.0,64259.0,0.077773]
[1724552902966,0.02821476,64260.0,64259.0,0.077773]
[1724552903467,0.10598676,64260.0,64259.0,0.077773]
[1724552903667,0.077775,64258.0,64257.0,0.04648912]
[1724552903862,0.46378977,64258.0,64257.0,0.04648912]
[1724552904762,0.10298977,64258.0,64257.0,0.04648912]
[1724552904966,0.46378977,64258.0,64257.0,0.04648912]
[1724552905367,0.46378977,64258.0,64257.0,0.04748912]
[1724552905568,0.46378977,64258.0,64257.0,0.001]
[1724552906768,0.438575,64258.0,64257.0,0.001]
[1724552908570,0.438575,64258.0,64257.0,0.06300636]